bitfinex-derivatives/quotes_BTCF0:USTF0_20251209
["timestamp","ask_amount","ask_price","bid_price","bid_amount"]
[1765245616526,0.46724,90107.0,90106.0,0.02979]
[1765245616716,0.46824,90107.0,90106.0,0.02979]
[1765245617023,0.46724,90107.0,90106.0,0.02979]
[1765245618026,0.47024,90107.0,90106.0,0.02979]
[1765245618416,0.05624,90097.0,90096.0,0.07383]
[1765245618618,0.05624,90094.0,90093.0,0.02988641]
[1765245618812,0.43624,90094.0,90093.0,0.02988641]
[1765245619328,0.43624,90094.0,90093.0,0.05749641]
[1765245619523,0.05624,90094.0,90093.0,0.05749641]
[1765245619725,0.0873386,90094.0,90093.0,0.05849641]
[1765245619924,0.0673386,90094.0,90093.0,0.05849641]
[1765245620620,0.0673386,90094.0,90093.0,0.05749641]
[1765245620928,0.0683386,90094.0,90093.0,0.05749641]
[1765245622219,0.0693386,90094.0,90093.0,0.05749641]
[1765245623125,0.0130986,90094.0,90093.0,0.05749641]
[1765245623331,0.0407586,90094.0,90093.0,0.05749641]
[1765245623625,0.0693386,90094.0,90093.0,0.05749641]
[1765245624324,0.4393386,90094.0,90093.0,0.02988641]
[1765245625831,0.4373386,90094.0,90093.0,0.05749641]
[1765245626027,0.4393386,90094.0,90093.0,0.05749641]
[1765245626524,0.4403386,90094.0,90093.0,0.05749641]
[1765245626720,0.4413386,90094.0,90093.0,0.05749641]
[1765245627024,0.4393386,90094.0,90093.0,0.05749641]
[1765245627326,0.0713386,90094.0,90093.0,0.05749641]
[1765245628918,0.0693386,90094.0,90093.0,0.05749641]
[1765245629122,0.0713386,90094.0,90093.0,0.05749641]
[1765245629520,0.0703386,90094.0,90093.0,0.05749641]
[1765245629721,0.0683386,90094.0,90093.0,0.05749641]
[1765245629926,0.0693386,90094.0,90093.0,0.05749641]
[1765245630819,0.0683386,90094.0,90093.0,0.05749641]
[1765245631024,0.0693386,90094.0,90093.0,0.05749641]
[1765245632229,0.0683386,90094.0,90093.0,0.05749641]
[1765245632426,0.0693386,90094.0,90093.0,0.05749641]
[1765245635329,0.0683386,90094.0,90093.0,0.05749641]
[1765245635524,0.0693386,90094.0,90093.0,0.00016641]
[1765245635727,0.4193386,90094.0,90093.0,0.02988641]
[1765245635927,0.4183386,90094.0,90093.0,0.05749641]
[1765245636123,0.4193386,90094.0,90093.0,0.05749641]
[1765245637638,0.0673389,90091.0,90090.0,0.03083001]
[1765245637846,0.4973389,90091.0,90090.0,0.03083001]
[1765245638839,0.4983389,90091.0,90090.0,0.00111001]
[1765245639348,0.5248311,90091.0,90090.0,0.00111001]
[1765245639938,0.5278311,90091.0,90090.0,0.00111001]
[1765245640737,0.5278311,90091.0,90090.0,0.00311001]
[1765245640738,0.5003389,90091.0,90090.0,0.00311001]
[1765245641233,0.0111001,90082.0,90081.0,0.00016641]
[1765245641434,0.4673401,90082.0,90081.0,0.00016641]
[1765245642148,0.4673401,90082.0,90081.0,0.02988641]
[1765245642643,0.002,90082.0,90081.0,0.06859661]
[1765245642846,0.002,90082.0,90081.0,0.45859661]
[1765245643050,0.00016651,90091.0,90090.0,0.0763691]
[1765245643249,0.00016651,90091.0,90090.0,0.4263691]
[1765245643451,0.02905651,90091.0,90090.0,0.4263691]
[1765245643636,0.05820651,90091.0,90090.0,0.41527]
[1765245643946,0.05820651,90091.0,90090.0,0.10612]
[1765245644133,0.30820651,90091.0,90090.0,0.05612]
[1765245644339,0.05820651,90091.0,90090.0,0.05612]
[1765245645146,0.05820651,90091.0,90090.0,0.07304]
[1765245645351,0.00016651,90091.0,90090.0,0.07504]
[1765245645543,0.05820651,90091.0,90090.0,0.07504]
[1765245645850,0.05820651,90091.0,90090.0,0.07304]
[1765245646546,0.00016651,90091.0,90090.0,0.07304]
[1765245646744,0.05920651,90091.0,90090.0,0.07304]
[1765245647347,0.05920651,90091.0,90090.0,0.07504]
[1765245647654,0.05920651,90091.0,90090.0,0.05812]
[1765245647948,0.05920651,90091.0,90081.0,0.05628641]
[1765245647949,0.05804,90082.0,90081.0,0.05628641]
[1765245648955,0.0691392,90089.0,90088.0,0.0110992]
[1765245649245,0.0691392,90089.0,90088.0,0.0672192]
[1765245649854,0.0691392,90089.0,90088.0,0.05612]
[1765245650050,0.0691392,90089.0,90088.0,0.02857]
[1765245651053,0.0691401,90082.0,90081.0,0.05828641]
[1765245651250,0.0691401,90082.0,90081.0,0.05628641]
[1765245652251,0.0701401,90082.0,90081.0,0.05628641]
[1765245653855,0.05904,90082.0,90081.0,0.05628641]
[1765245654061,0.02989,90082.0,90081.0,0.05628641]
[1765245654360,0.001,90082.0,90081.0,0.05628641]
[1765245654553,0.0661297,90085.0,90084.0,0.07378]
[1765245654951,0.0661297,90085.0,90084.0,0.05661]
[1765245655150,0.05503,90085.0,90084.0,0.05661]
[1765245656153,0.0661297,90085.0,90084.0,0.05661]
[1765245657760,0.0661297,90085.0,90084.0,0.05761]
[1765245657962,0.05603,90085.0,90084.0,0.05761]
[1765245659562,0.05603,90085.0,90084.0,0.07478]
[1765245660663,0.05603,90085.0,90084.0,0.05761]
[1765245662065,0.001,90085.0,90084.0,0.50478]
[1765245662560,0.02876,90085.0,90084.0,0.50478]
[1765245663163,0.001,90085.0,90084.0,0.50478]
[1765245663364,0.05603,90085.0,90084.0,0.50478]
[1765245663966,0.05603,90085.0,90084.0,0.05761]
[1765245665164,0.43603,90085.0,90084.0,0.001]
[1765245665469,0.05503,90082.0,90081.0,0.00016641]
[1765245665659,0.41503,90082.0,90081.0,0.00016641]
[1765245666571,0.41503,90082.0,90081.0,0.00216641]
[1765245668370,0.41603,90082.0,90081.0,0.00216641]
[1765245669473,0.41603,90082.0,90081.0,0.00016641]
[1765245669673,0.41703,90082.0,90081.0,0.00016641]
[1765245669875,0.41703,90082.0,90081.0,0.02760641]
[1765245670389,0.41803,90082.0,90081.0,0.02760641]
[1765245672573,0.41803,90082.0,90081.0,0.00016641]
[1765245673268,0.41803,90082.0,90070.0,8.239e-05]
[1765245673269,0.0672314,90071.0,90070.0,8.239e-05]
[1765245673468,0.0972314,90071.0,90070.0,8.239e-05]
[1765245673669,0.0972314,90071.0,90070.0,0.05809239]
[1765245674267,0.08613,90071.0,90070.0,0.05809239]
[1765245674679,0.46613,90071.0,90070.0,0.02984239]
[1765245674877,0.46613,90071.0,90070.0,0.05809239]
[1765245675479,0.06613,90071.0,90070.0,0.05809239]
[1765245676273,0.06613,90071.0,90070.0,0.05909239]
[1765245676872,0.47613,90071.0,90070.0,0.00108239]
[1765245677174,0.083602,90066.0,90065.0,0.00111032]
[1765245677372,0.513602,90066.0,90065.0,0.00111032]
[1765245677772,0.0672325,90062.0,90061.0,0.00016651]
[1765245677971,0.4972325,90062.0,90061.0,0.00016651]
[1765245678167,0.49731489,90062.0,90061.0,0.00016651]
[1765245678471,0.0672338,90052.0,90051.0,0.05801]
[1765245680376,0.0682338,90052.0,90051.0,0.05801]
[1765245682181,0.0682338,90052.0,90051.0,0.0691139]
[1765245682383,0.0692338,90052.0,90051.0,0.0691139]
[1765245683078,0.05613,90041.0,90040.0,0.00111062]
[1765245683284,0.05613,90041.0,90040.0,0.05912062]
[1765245684378,0.05613,90041.0,90040.0,0.06112062]
[1765245684581,0.02781,90041.0,90040.0,0.0828699]
[1765245684975,0.18648185,90050.0,90049.0,0.05801]
[1765245685177,0.10266651,90050.0,90049.0,0.05801]
[1765245685785,0.0111041,90049.0,90046.0,0.0691145]
[1765245686094,0.05613,90047.0,90046.0,0.0691145]
[1765245689385,0.05613,90047.0,90046.0,0.05801]
[1765245689588,0.05613,90047.0,90046.0,0.0691145]
[1765245690180,0.011105,90042.0,90041.0,0.05801]
[1765245690380,0.067235,90042.0,90041.0,0.0691151]
[1765245693012,0.068235,90042.0,90041.0,0.0691151]
[1765245693204,0.468235,90042.0,90041.0,0.05801]
[1765245693405,0.05613,90041.0,90040.0,0.00111062]
[1765245693598,0.0672362,90032.0,90031.0,0.05801]
[1765245693801,0.4872362,90032.0,90031.0,0.05801]
[1765245694109,0.05613,90032.0,90031.0,0.0691163]
[1765245695507,0.4672362,90032.0,90031.0,0.05801]
[1765245696010,0.05613,90016.0,90015.0,0.07037199]
[1765245696200,0.05621239,90016.0,90015.0,0.50670199]
[1765245696397,0.02789239,90016.0,90015.0,0.50670199]
[1765245697809,0.02789239,90016.0,90015.0,0.50870199]
[1765245698309,0.02789239,90016.0,90015.0,0.50670199]
[1765245698499,0.02789239,90016.0,90015.0,0.50770199]
[1765245699411,8.239e-05,90016.0,90015.0,0.50770199]
[1765245699813,8.239e-05,90016.0,90015.0,0.51943532]
[1765245702915,8.239e-05,90016.0,90015.0,0.31943532]
[1765245703118,0.05537239,90016.0,90015.0,0.31943532]
[1765245703808,8.239e-05,90016.0,90015.0,0.31943532]
[1765245704713,0.0559566,90025.0,90024.0,0.0696272]
[1765245704921,0.0559566,90025.0,90024.0,0.4296272]
[1765245705313,0.0559566,90025.0,90024.0,0.1596272]
[1765245705921,0.0569566,90025.0,90024.0,0.1596272]
[1765245706219,0.0569566,90025.0,90024.0,0.4196272]
[1765245706419,0.0294766,90025.0,90024.0,0.4196272]
[1765245706620,0.0569566,90025.0,90024.0,0.4196272]
[1765245707716,0.0579566,90025.0,90024.0,0.4196272]
[1765245708820,0.0579566,90025.0,90024.0,0.1496272]
[1765245709315,0.0579566,90025.0,90024.0,0.3696272]
[1765245709911,0.0579566,90025.0,90024.0,0.1196272]
[1765245710918,0.0579566,90025.0,90024.0,0.0696272]
[1765245713526,0.0021666,90025.0,90024.0,0.0696272]
[1765245713725,0.0021666,90025.0,90024.0,0.4896272]
[1765245714123,0.0690637,90025.0,90024.0,0.1496272]
[1765245714425,0.0690637,90025.0,90024.0,0.0696272]
[1765245715227,0.0680637,90025.0,90024.0,0.05852]
[1765245715421,0.0850837,90025.0,90024.0,0.05952]
[1765245715727,0.0840837,90025.0,90024.0,0.05952]
[1765245715918,0.0840837,90025.0,90024.0,0.05852]
[1765245717726,0.0850837,90025.0,90024.0,0.05852]
[1765245718822,0.0840837,90025.0,90024.0,0.05852]
[1765245719029,0.0850837,90025.0,90024.0,0.05852]
[1765245720426,0.0668979,90018.0,90017.0,0.069628]
[1765245720615,0.05579,90018.0,90017.0,0.069628]
[1765245720816,0.0011666,90025.0,90024.0,0.0696272]
[1765245721023,0.0668949,90043.0,90042.0,0.05852]
[1765245721517,0.0111041,90050.0,90049.0,0.05852]
[1765245721722,0.05579,90055.0,90045.0,0.01628]
[1765245721922,0.07281,90054.0,90053.0,0.05852]
[1765245722124,0.05579,90054.0,90053.0,0.05852]
[1765245723936,0.05879,90054.0,90053.0,0.05852]
[1765245724228,0.06079,90054.0,90053.0,0.05852]
[1765245726529,0.05579,90045.0,90044.0,0.0697913]
[1765245726834,0.06079,90054.0,90053.0,0.0696236]
[1765245727635,0.05879,90054.0,90053.0,0.0696236]
[1765245727836,0.05579,90054.0,90053.0,0.0696236]
[1765245728335,0.05779,90054.0,90053.0,0.0696236]
[1765245728526,0.06079,90054.0,90053.0,0.0696236]
[1765245730737,0.07847,90054.0,90053.0,0.0696236]
[1765245731533,0.0001666,90063.0,90053.0,0.4496236]
[1765245731838,0.02773,90080.0,90079.0,0.05496]
[1765245732034,0.02884001,90090.0,90089.0,0.05496]
[1765245732234,0.00111001,90090.0,90089.0,0.05496]
[1765245732439,0.02884001,90090.0,90089.0,0.0660592]
[1765245732747,0.05828001,90090.0,90089.0,0.0660592]
[1765245732935,0.07625001,90090.0,90089.0,0.05496]
[1765245733135,0.05828001,90090.0,90089.0,0.05496]
[1765245733841,0.05928001,90090.0,90089.0,0.05496]
[1765245737948,0.07725001,90090.0,90089.0,0.05496]
[1765245738337,0.05928001,90090.0,90089.0,0.05496]
[1765245738949,0.07725001,90090.0,90089.0,0.05496]
[1765245739935,0.05928001,90090.0,90089.0,0.05496]
[1765245740551,0.06416001,90090.0,90089.0,0.05496]
[1765245741451,0.0682502,90081.0,90080.0,0.0001665]
[1765245742045,0.0682502,90081.0,90080.0,0.0289065]
[1765245742254,0.4682502,90081.0,90080.0,0.0289065]
[1765245742853,0.4682502,90081.0,90080.0,0.0299065]
[1765245743252,0.4682502,90081.0,90061.0,0.0111025]
[1765245743449,0.0682525,90062.0,90061.0,0.05612]
[1765245744952,0.0682525,90062.0,90061.0,0.0672226]
[1765245745162,0.0702525,90062.0,90061.0,0.0672226]
[1765245745353,0.0702525,90062.0,90061.0,0.07878633]
[1765245745659,0.002,90062.0,90061.0,0.07878633]
[1765245746450,0.004,90062.0,90061.0,0.07878633]
[1765245746649,0.03171,90062.0,90061.0,0.07878633]
[1765245747251,0.06115,90062.0,90061.0,0.0672226]
[1765245747756,0.06115,90062.0,90061.0,0.05612]
[1765245748959,0.004,90062.0,90061.0,0.05612]
[1765245750054,0.06115,90062.0,90061.0,0.05612]
[1765245753858,0.0722525,90062.0,90061.0,0.05612]
[1765245755865,0.06115,90062.0,90061.0,0.05612]
[1765245756559,0.06115,90062.0,90061.0,0.46612]
[1765245756764,0.004,90062.0,90061.0,0.46612]
[1765245757961,0.03171,90062.0,90061.0,0.46612]
[1765245760067,0.05715,90053.0,90052.0,0.06789535]
[1765245760259,0.05715,90053.0,90052.0,0.0562865]
[1765245760768,0.05715,90053.0,90052.0,0.06793983]
[1765245760974,0.05715,90053.0,90052.0,0.07904363]
[1765245761163,0.05715,90053.0,90052.0,0.49004363]
[1765245761365,0.05815,90053.0,90052.0,0.49004363]
[1765245761969,0.05715,90053.0,90052.0,0.49004363]
[1765245762269,0.05815,90053.0,90052.0,0.49004363]
[1765245762566,0.05815,90053.0,90052.0,0.48904363]
[1765245762759,0.02871,90053.0,90052.0,0.49004363]
[1765245763564,0.0684631,90058.0,90057.0,0.0686731]
[1765245763763,0.0285465,90071.0,90070.0,0.05757]
[1765245763965,0.0001665,90071.0,90070.0,0.05757]
[1765245764458,0.0001665,90071.0,90070.0,0.44757]
[1765245765473,0.0001665,90071.0,90070.0,0.44957]
[1765245766179,0.0684594,90088.0,90087.0,0.05757]
[1765245766366,0.00111001,90090.0,90089.0,0.05757]
[1765245766678,0.02949001,90090.0,90089.0,0.05757]
[1765245767065,0.00111001,90090.0,90089.0,0.05757]
[1765245767275,0.02949001,90090.0,90089.0,0.05757]
[1765245767476,0.05847001,90090.0,90089.0,0.05757]
[1765245768171,0.05947001,90090.0,90089.0,0.05757]
[1765245768976,0.05947001,90090.0,90089.0,0.05857]
[1765245770070,0.07690001,90090.0,90089.0,0.05857]
[1765245771078,0.07690001,90090.0,90089.0,0.03052]
[1765245771279,0.07690001,90090.0,90089.0,0.05857]
[1765245775283,0.05947001,90090.0,90089.0,0.05857]
[1765245776086,0.07690001,90090.0,90089.0,0.05857]
[1765245780892,0.05947001,90090.0,90089.0,0.05857]
[1765245781279,0.16947001,90090.0,90089.0,0.05857]
[1765245781492,0.42690001,90090.0,90089.0,0.05857]
[1765245783289,0.16690001,90090.0,90089.0,0.05857]
[1765245783592,0.05947001,90090.0,90089.0,0.05857]
[1765245783793,0.00211001,90090.0,90089.0,0.05857]
[1765245784880,0.00211001,90090.0,90089.0,0.41857]
[1765245785788,0.0001665,90099.0,90098.0,0.0658081]
[1765245787491,0.0575565,90099.0,90098.0,0.05471]
[1765245787683,0.0684891,90090.0,90089.0,0.05571]
[1765245787882,0.0684891,90090.0,90089.0,0.05471]
[1765245791597,0.0275565,90099.0,90098.0,0.05471]
[1765245791788,0.0575565,90099.0,90098.0,0.05471]
[1765245791987,0.0275565,90099.0,90098.0,0.05471]
[1765245792490,0.0275565,90099.0,90098.0,0.06600351]
[1765245792794,0.0041665,90099.0,90098.0,0.42600351]
[1765245793394,0.02852,90109.0,90108.0,0.0706867]
[1765245793595,0.05798,90109.0,90108.0,0.0706867]
[1765245793903,0.0405563,90113.0,90112.0,0.0706864]
[1765245794209,0.0690763,90113.0,90112.0,0.05959]
[1765245795000,0.0112616,90122.0,90114.0,0.07676]
[1765245795001,0.0110955,90119.0,90114.0,0.07676]
[1765245795700,0.13034158,90122.0,90114.0,0.07676]
[1765245795701,0.0701857,90115.0,90114.0,0.07676]
[1765245796099,0.0701857,90115.0,90114.0,0.07876]
[1765245797596,0.0590897,90115.0,90114.0,0.07876]
[1765245797901,0.0590897,90115.0,90114.0,0.08576]
[1765245798893,0.0590897,90115.0,90114.0,0.06859]
[1765245799612,0.0590897,90115.0,90114.0,0.009]
[1765245800208,0.0690773,90104.0,90103.0,0.0597565]
[1765245800393,0.0690773,90104.0,90103.0,0.0797565]
[1765245800912,0.01363,90108.0,90103.0,0.0797565]
[1765245800913,0.0110968,90109.0,90103.0,0.4197565]
[1765245801207,0.0011097,90115.0,90111.0,0.07676]
[1765245801208,0.0110964,90112.0,90111.0,0.07676]
[1765245801408,0.0110964,90112.0,90111.0,0.42676]
[1765245801799,0.0690764,90112.0,90111.0,0.42676]
[1765245802307,0.05798,90112.0,90111.0,0.42676]
[1765245802607,0.05898,90112.0,90111.0,0.42676]
[1765245802794,0.00110939,90140.0,90121.0,0.05959]
[1765245802995,0.07018229,90140.0,90139.0,0.05959]
[1765245803207,0.07018229,90140.0,90139.0,0.07676]
[1765245804104,0.00110939,90140.0,90139.0,0.087853]
[1765245804297,0.00310939,90140.0,90139.0,0.087853]
[1765245804697,0.00410939,90140.0,90139.0,0.087853]
[1765245805002,0.06208939,90140.0,90139.0,0.07676]
[1765245808909,0.06208939,90140.0,90139.0,0.05959]
[1765245809299,0.06208939,90140.0,90139.0,0.070683]
[1765245809508,0.06208939,90140.0,90139.0,0.05959]
[1765245809694,0.06208939,90140.0,90139.0,0.07676]
[1765245809898,0.00410939,90140.0,90139.0,0.07676]
[1765245810099,0.00410939,90140.0,90139.0,0.48676]
[1765245810405,0.06208939,90140.0,90139.0,0.07676]
[1765245811708,0.03356939,90140.0,90139.0,0.07676]
[1765245811909,0.06208939,90140.0,90139.0,0.07676]
[1765245812106,0.0110938,90133.0,90132.0,0.02968]
[1765245812412,0.05798,90133.0,90132.0,0.07676]
[1765245812604,0.06208939,90140.0,90136.0,0.0110933]
[1765245812910,0.06208939,90140.0,90139.0,0.07676]
[1765245813111,0.00310939,90140.0,90139.0,0.07676]
[1765245813713,0.06108939,90140.0,90139.0,0.07676]
[1765245814013,0.06008939,90140.0,90139.0,0.07676]
[1765245814711,0.06208939,90140.0,90139.0,0.07676]
[1765245814908,0.03356939,90140.0,90139.0,0.087853]
[1765245815110,0.00410939,90140.0,90139.0,0.087853]
[1765245815812,0.00110908,90165.0,90164.0,0.05959]
[1765245816001,0.0690675,90184.0,90183.0,0.05959]
[1765245816207,0.47411505,90184.0,90183.0,0.05959]
[1765245816412,0.16411505,90184.0,90183.0,0.05959]
[1765245816803,0.40411505,90184.0,90183.0,0.05959]
[1765245817204,0.05798,90175.0,90174.0,0.0173364]
[1765245817517,0.0690676,90184.0,90183.0,0.05959]
[1765245817698,0.0405476,90184.0,90183.0,0.05959]
[1765245817904,0.0415476,90184.0,90183.0,0.05959]
[1765245818314,0.0700676,90184.0,90183.0,0.05959]
[1765245819202,0.0690676,90184.0,90183.0,0.06059]
[1765245820114,0.0750676,90184.0,90183.0,0.05959]
[1765245821008,0.0750676,90184.0,90174.0,0.0173364]
[1765245821214,0.0690686,90175.0,90174.0,0.4469264]
[1765245822010,0.0110886,90175.0,90174.0,0.4469264]
[1765245823113,0.001,90175.0,90174.0,0.4469264]
[1765245824009,0.0110874,90185.0,90181.0,0.01737]
[1765245824229,0.00110878,90190.0,90181.0,0.01737]
[1765245824230,0.05816198,90189.0,90188.0,0.07413]
[1765245824917,0.06924888,90189.0,90188.0,0.07413]
[1765245825103,0.0690277,90182.0,90181.0,0.05676]
[1765245825304,0.0690277,90182.0,90181.0,0.07413]
[1765245826009,0.0110877,90182.0,90181.0,0.07413]
[1765245826508,0.0130877,90182.0,90181.0,0.07413]
[1765245826916,0.0710277,90182.0,90181.0,0.07413]
[1765245827506,0.0740277,90182.0,90181.0,0.07413]
[1765245827707,0.0160877,90182.0,90181.0,0.07413]
[1765245828117,0.005,90182.0,90181.0,0.45413]
[1765245828418,0.00022198,90189.0,90188.0,0.07413]
[1765245828619,0.00110878,90190.0,90189.0,0.05676]
[1765245828816,0.0001664,90193.0,90192.0,0.05676]
[1765245829312,0.0110851,90204.0,90203.0,0.05676]
[1765245829904,0.0690245,90209.0,90208.0,0.07413]
[1765245830718,0.0392445,90209.0,90208.0,0.07413]
[1765245830910,0.0392445,90209.0,90208.0,0.07513]
[1765245831111,0.0690245,90209.0,90208.0,0.05776]
[1765245832211,0.09390725,90209.0,90208.0,0.05776]
[1765245832416,0.09390725,90209.0,90208.0,0.05876]
[1765245832610,0.0690245,90209.0,90208.0,0.07613]
[1765245835018,0.09390496,90209.0,90208.0,0.05876]
[1765245836818,0.02488046,90209.0,90208.0,0.0698445]
[1765245838022,0.0392435,90217.0,90216.0,0.07413]
[1765245838221,0.06412646,90217.0,90216.0,0.07413]
[1765245838426,0.02488296,90217.0,90216.0,0.07413]
[1765245838725,0.03596636,90217.0,90216.0,0.07413]
[1765245839236,0.09490636,90217.0,90216.0,0.07413]
[1765245840026,0.09390636,90217.0,90216.0,0.07413]
[1765245840414,0.09390636,90217.0,90216.0,0.07513]
[1765245840615,0.09390636,90217.0,90216.0,0.05776]
[1765245840924,0.09390636,90217.0,90216.0,0.001]
[1765245841119,0.46390636,90217.0,90216.0,0.001]
[1765245841324,0.46390636,90217.0,90199.0,0.05668631]
[1765245841325,0.0679155,90200.0,90199.0,0.05668631]
[1765245841519,0.0679155,90200.0,90199.0,0.00016631]
[1765245841520,0.09279846,90200.0,90199.0,0.00016631]
[1765245841717,0.09279846,90200.0,90199.0,0.05668631]
[1765245842525,0.09279846,90200.0,90199.0,0.05768631]
[1765245842724,0.08171296,90200.0,90199.0,0.06268631]
[1765245843424,0.05934259,90216.0,90215.0,0.05652]
[1765245843635,0.05934259,90224.0,90217.0,0.05652]
[1765245843823,0.07042519,90224.0,90217.0,0.05652]
[1765245844021,0.0110826,90224.0,90217.0,0.05652]
[1765245844330,0.07042479,90228.0,90217.0,0.05652]
[1765245844534,0.0110825,90225.0,90217.0,0.05652]
[1765245844721,0.0110829,90222.0,90217.0,0.05652]
[1765245844920,0.05693485,90218.0,90217.0,0.05652]
[1765245845336,0.0679144,90209.0,90208.0,0.07112]
[1765245845630,0.06801815,90218.0,90217.0,0.05652]
[1765245846131,0.06801815,90218.0,90217.0,0.05752]
[1765245846331,0.06801815,90218.0,90217.0,0.05952]
[1765245850123,0.00010485,90218.0,90217.0,0.05952]
[1765245851426,0.05693485,90218.0,90217.0,0.05952]
[1765245852833,0.05693485,90218.0,90217.0,0.0706034]
[1765245852834,0.00010485,90218.0,90217.0,0.0706034]
[1765245853134,0.00010485,90218.0,90217.0,0.5006034]
[1765245854132,0.00010485,90218.0,90217.0,0.0696034]
[1765245854432,0.05820485,90218.0,90217.0,0.05952]
[1765245854828,0.05820485,90218.0,90217.0,0.05752]
[1765245855029,0.05920485,90218.0,90217.0,0.05752]
[1765245855830,0.00110485,90218.0,90217.0,0.45752]
[1765245856229,0.00110485,90218.0,90217.0,0.05752]
[1765245856735,0.00110485,90218.0,90217.0,0.46752]
[1765245858933,0.02874,90231.0,90230.0,0.0676018]
[1765245859243,0.0110815,90234.0,90233.0,0.0676015]
[1765245859642,0.0691806,90241.0,90240.0,0.05652]
[1765245859835,0.12410797,90241.0,90240.0,0.05652]
[1765245860533,0.03600787,90241.0,90240.0,0.0744]
[1765245861145,0.03700787,90241.0,90240.0,0.0744]
[1765245861844,0.03600787,90241.0,90240.0,0.0744]
[1765245862138,0.0110805,90241.0,90240.0,0.0744]
[1765245862344,0.0130805,90241.0,90240.0,0.0744]
[1765245862743,0.0711805,90241.0,90240.0,0.05652]
[1765245862941,0.0961029,90241.0,90240.0,0.05652]
[1765245863242,0.0711805,90241.0,90240.0,0.05652]
[1765245863446,0.0130805,90241.0,90240.0,0.05652]
[1765245864240,0.0418205,90241.0,90240.0,0.05652]
[1765245864832,0.06673545,90241.0,90240.0,0.05652]
[1765245865544,0.09609545,90241.0,90240.0,0.05652]
[1765245865738,0.0110814,90234.0,90232.0,0.0289616]
[1765245865944,0.0581,90233.0,90232.0,0.5044]
[1765245866850,0.0581,90233.0,90232.0,0.5054]
[1765245868148,0.0398208,90239.0,90238.0,0.05652]
[1765245868446,0.0581,90239.0,90238.0,0.0676009]
[1765245868747,0.0110806,90241.0,90240.0,0.0744]
[1765245869746,0.0581,90245.0,90244.0,0.05652]
[1765245869950,0.0830062,90245.0,90244.0,0.0676001]
[1765245870145,0.0249062,90245.0,90244.0,0.0676001]
[1765245870748,0.011079,90254.0,90253.0,0.02891]
[1765245870939,0.06472469,90254.0,90253.0,0.05652]
[1765245871143,0.05364569,90254.0,90253.0,0.05652]
[1765245871342,0.02490569,90254.0,90253.0,0.05652]
[1765245871648,0.00110786,90265.0,90255.0,0.05652]
[1765245871649,0.0110787,90256.0,90255.0,0.05652]
[1765245872051,0.00110786,90265.0,90256.0,0.01788]
[1765245872248,0.0110759,90279.0,90278.0,0.05652]
[1765245872550,0.0110759,90279.0,90276.0,0.0110762]
[1765245872551,0.02490686,90279.0,90276.0,0.0110762]
[1765245872753,0.03598286,90278.0,90277.0,0.05652]
[1765245873252,0.0110756,90282.0,90281.0,0.05652]
[1765245873439,0.0398156,90282.0,90281.0,0.05652]
[1765245873637,0.06471468,90282.0,90281.0,0.05652]
[1765245874044,0.09407468,90282.0,90281.0,0.05652]
[1765245874349,0.09407468,90282.0,90281.0,0.02761]
[1765245874757,0.09907468,90282.0,90281.0,0.02761]
[1765245874952,0.0581,90270.0,90269.0,0.02777621]
[1765245875147,0.0581,90270.0,90269.0,0.05668621]
[1765245876155,0.0110766,90273.0,90272.0,0.05652]
[1765245876459,0.0691762,90277.0,90276.0,0.05652]
[1765245877255,0.0398162,90277.0,90276.0,0.05652]
[1765245877753,0.0691762,90277.0,90276.0,0.05652]
[1765245878251,0.0691762,90277.0,90270.0,0.05652]
[1765245878252,0.0691768,90271.0,90270.0,0.05652]
[1765245878455,0.0691768,90271.0,90269.0,0.00016621]
[1765245878456,0.07452,90270.0,90269.0,0.00016621]
[1765245878650,0.0691794,90250.0,90249.0,0.06776421]
[1765245878846,0.0691794,90250.0,90249.0,0.05652]
[1765245879355,0.0271681,90261.0,90234.0,0.01788]
[1765245879356,0.0691801,90244.0,90243.0,0.05652]
[1765245879548,0.0691801,90244.0,90243.0,0.0744]
[1765245879748,0.0398211,90236.0,90235.0,0.0676012]
[1765245879957,0.0581,90243.0,90242.0,0.05652]
[1765245881161,0.0621,90243.0,90242.0,0.05652]
[1765245881947,0.0631,90243.0,90242.0,0.05652]
[1765245882553,0.0621,90243.0,90242.0,0.05652]
[1765245882757,0.0631,90243.0,90242.0,0.05652]
[1765245883153,0.03374,90243.0,90242.0,0.05652]
[1765245883552,0.03374,90243.0,90242.0,0.40652]
[1765245883553,0.005,90243.0,90242.0,0.40652]
[1765245884056,0.005,90243.0,90242.0,0.05652]
[1765245884360,0.005,90243.0,90242.0,0.40652]
[1765245887561,0.11648259,90283.0,90282.0,0.05864]
[1765245887757,0.15244803,90283.0,90282.0,0.05864]
[1765245887959,0.05714,90271.0,90270.0,0.05864]
[1765245888158,0.08203014,90271.0,90270.0,0.05864]
[1765245888960,0.08203014,90271.0,90270.0,0.07582]
[1765245889160,0.02489014,90271.0,90270.0,0.07582]
[1765245889346,0.08203441,90280.0,90279.0,0.07582]
[1765245889753,0.02489441,90280.0,90279.0,0.07582]
[1765245890656,0.02789441,90280.0,90279.0,0.07582]
[1765245890957,0.02889441,90280.0,90279.0,0.07582]
[1765245891157,0.02889441,90280.0,90279.0,0.0868958]
[1765245891158,0.02589441,90280.0,90279.0,0.0868958]
[1765245891666,0.02489441,90280.0,90279.0,0.0868958]
[1765245892454,0.00110755,90290.0,90289.0,0.0697146]
[1765245893150,0.0263156,90290.0,90289.0,0.0697146]
[1765245893761,0.07041529,90305.0,90302.0,0.05864]
[1765245893960,0.07912345,90314.0,90297.0,0.01659]
[1765245893961,0.0682122,90309.0,90308.0,0.05864]
[1765245894266,0.05714,90301.0,90300.0,0.05864]
[1765245894660,0.05714,90295.0,90294.0,0.02931611]
[1765245894856,0.05714,90295.0,90294.0,0.05880611]
[1765245895053,0.05714,90295.0,90294.0,0.00016611]
[1765245895454,0.05714,90295.0,90294.0,0.02931611]
[1765245896664,0.05714,90295.0,90294.0,0.03131611]
[1765245896874,0.05714,90295.0,90294.0,0.03231611]
[1765245897671,0.05714,90295.0,90294.0,0.06180611]
[1765245897860,0.0682131,90302.0,90301.0,0.05864]
[1765245898056,0.01794,90306.0,90295.0,0.05864]
[1765245898263,0.05714,90295.0,90294.0,0.06180611]
[1765245898969,0.05714,90295.0,90294.0,0.05980611]
[1765245899467,0.05714,90295.0,90294.0,0.03031611]
[1765245899675,0.05714,90295.0,90294.0,0.00316611]
[1765245899971,0.43714,90295.0,90294.0,0.00216611]